[Event "Late-Titled-Tuesday-Blitz-March-05-2024"]
[Site "Chess.com"]
[Date "2024.03.05"]
[Round "7"]
[White "Qvalda"]
[Black "Bekkedahl"]
[Result "1-0"]
[WhiteElo "2439"]
[BlackElo "2212"]
[TimeControl "180+1"]
[EndTime "15:11:49 PST"]
[Termination "Qvalda won by resignation"]

1. d4 {[%clk 0:03:00.9]} 1... Nf6 {[%clk 0:02:59.8]} 2. c4 {[%clk 0:02:58.5]}
2... g6 {[%clk 0:03:00.4]} 3. Nf3 {[%clk 0:02:56.6]} 3... Bg7 {[%clk 0:03:01]}
4. e3 {[%clk 0:02:57.2]} 4... O-O {[%clk 0:03:01.4]} 5. Be2 {[%clk 0:02:57.9]}
5... d6 {[%clk 0:03:00.7]} 6. O-O {[%clk 0:02:57.6]} 6... Nc6 {[%clk 0:02:47.5]}
7. d5 {[%clk 0:02:56.2]} 7... Ne5 {[%clk 0:02:46]} 8. Nxe5 {[%clk 0:02:55.9]}
8... dxe5 {[%clk 0:02:46.9]} 9. Nc3 {[%clk 0:02:56.3]} 9... e6 {[%clk
0:02:36.3]} 10. Qb3 {[%clk 0:02:51.4]} 10... exd5 {[%clk 0:02:35.7]} 11. cxd5
{[%clk 0:02:52.3]} 11... c6 {[%clk 0:02:20.8]} 12. dxc6 {[%clk 0:02:53.2]} 12...
bxc6 {[%clk 0:02:20.5]} 13. e4 {[%clk 0:02:53.6]} 13... Be6 {[%clk 0:02:18.2]}
14. Qa3 {[%clk 0:02:53.4]} 14... Qc7 {[%clk 0:02:11.4]} 15. Be3 {[%clk
0:02:53.1]} 15... Nd7 {[%clk 0:02:06.9]} 16. f3 {[%clk 0:02:48.7]} 16... f5
{[%clk 0:02:01.8]} 17. exf5 {[%clk 0:02:40.1]} 17... gxf5 {[%clk 0:02:01.5]} 18.
Rfd1 {[%clk 0:02:39]} 18... Nf6 {[%clk 0:01:56.2]} 19. Bc5 {[%clk 0:02:35.2]}
19... Rfd8 {[%clk 0:01:53.6]} 20. Bd6 {[%clk 0:02:33.2]} 20... Qb7 {[%clk
0:01:49]} 21. Bxe5 {[%clk 0:02:18.9]} 21... Nd5 {[%clk 0:01:43.3]} 22. Bxg7
{[%clk 0:02:15.5]} 22... Kxg7 {[%clk 0:01:44.2]} 23. Bc4 {[%clk 0:02:08.6]}
23... Qb6+ {[%clk 0:01:37.7]} 24. Kh1 {[%clk 0:02:07.8]} 24... Nf4 {[%clk
0:01:02]} 25. Qe7+ {[%clk 0:01:59.5]} 25... Kh8 {[%clk 0:01:02.1]} 26. Qf6+
{[%clk 0:01:58.4]} 1-0

[Event "Late-Titled-Tuesday-Blitz-March-05-2024"]
[Site "Chess.com"]
[Date "2024.03.05"]
[Round "7"]
[White "chess94cu"]
[Black "HajiyevKanan"]
[Result "0-1"]
[WhiteElo "2642"]
[BlackElo "2556"]
[TimeControl "180+1"]
[EndTime "15:11:52 PST"]
[Termination "HajiyevKanan won by resignation"]

1. Nf3 {[%clk 0:03:00.9]} 1... d5 {[%clk 0:02:57.8]} 2. c4 {[%clk 0:03:01.8]}
2... c6 {[%clk 0:02:58.1]} 3. e3 {[%clk 0:03:01.3]} 3... Nf6 {[%clk 0:02:58.7]}
4. Nc3 {[%clk 0:03:01]} 4... g6 {[%clk 0:02:59.1]} 5. d4 {[%clk 0:02:58.5]} 5...
Bg7 {[%clk 0:02:59.5]} 6. Be2 {[%clk 0:02:58.9]} 6... O-O {[%clk 0:03:00.1]} 7.
O-O {[%clk 0:02:59.6]} 7... Ne4 {[%clk 0:03:00.7]} 8. Qc2 {[%clk 0:02:54.8]}
8... Nxc3 {[%clk 0:03:00.6]} 9. bxc3 {[%clk 0:02:51.1]} 9... Bg4 {[%clk
0:03:00.6]} 10. Rb1 {[%clk 0:02:38.7]} 10... Bf5 {[%clk 0:02:57.7]} 11. Bd3
{[%clk 0:02:38]} 11... Bxd3 {[%clk 0:02:58.4]} 12. Qxd3 {[%clk 0:02:38.8]} 12...
b6 {[%clk 0:02:51.9]} 13. cxd5 {[%clk 0:02:36.8]} 13... cxd5 {[%clk 0:02:47.8]}
14. c4 {[%clk 0:02:37.7]} 14... dxc4 {[%clk 0:02:36.8]} 15. Qxc4 {[%clk
0:02:38.6]} 15... Nd7 {[%clk 0:02:37.4]} 16. Ba3 {[%clk 0:02:36.2]} 16... Re8
{[%clk 0:02:32.1]} 17. Rbc1 {[%clk 0:02:34.8]} 17... Nf6 {[%clk 0:02:25.4]} 18.
Rfd1 {[%clk 0:02:31.5]} 18... Qd5 {[%clk 0:02:22.4]} 19. Qe2 {[%clk 0:02:25.2]}
19... Qa5 {[%clk 0:02:20.5]} 20. Qd3 {[%clk 0:02:21.4]} 20... Rac8 {[%clk
0:02:18.6]} 21. Ne5 {[%clk 0:02:11.9]} 21... Qa4 {[%clk 0:02:04.5]} 22. Qb3
{[%clk 0:02:01]} 22... Qxb3 {[%clk 0:01:59.5]} 23. axb3 {[%clk 0:02:01.9]} 23...
Bf8 {[%clk 0:01:34.1]} 24. Nc6 {[%clk 0:01:55]} 24... Kg7 {[%clk 0:01:32.7]} 25.
Nxa7 {[%clk 0:01:48.5]} 25... Ra8 {[%clk 0:01:33]} 26. Nb5 {[%clk 0:01:48.5]}
26... Ra5 {[%clk 0:01:33.2]} 27. Nc7 {[%clk 0:01:47.5]} 27... Rxa3 {[%clk
0:01:32.8]} 28. Nxe8+ {[%clk 0:01:46.7]} 28... Nxe8 {[%clk 0:01:33.7]} 29. Rd3
{[%clk 0:01:41.9]} 29... Nd6 {[%clk 0:01:32.8]} 30. Rc6 {[%clk 0:01:38.8]} 30...
Ra1+ {[%clk 0:01:29.8]} 0-1

[Event "Late-Titled-Tuesday-Blitz-March-05-2024"]
[Site "Chess.com"]
[Date "2024.03.05"]
[Round "7"]
[White "kleinebeer98"]
[Black "Szparu"]
[Result "1-0"]
[WhiteElo "2893"]
[BlackElo "2800"]
[TimeControl "180+1"]
[EndTime "15:11:57 PST"]
[Termination "kleinebeer98 won by checkmate"]

1. e4 {[%clk 0:03:00.9]} 1... c5 {[%clk 0:02:57.6]} 2. Nf3 {[%clk 0:02:48.4]}
2... a6 {[%clk 0:02:57.5]} 3. d4 {[%clk 0:02:48.7]} 3... cxd4 {[%clk 0:02:57.2]}
4. c3 {[%clk 0:02:49.6]} 4... dxc3 {[%clk 0:02:55.9]} 5. Nxc3 {[%clk 0:02:48.9]}
5... e6 {[%clk 0:02:56.4]} 6. Bd3 {[%clk 0:02:46.2]} 6... Nc6 {[%clk 0:02:56.9]}
7. O-O {[%clk 0:02:45.3]} 7... Nge7 {[%clk 0:02:55.9]} 8. Bg5 {[%clk 0:02:42.6]}
8... f6 {[%clk 0:02:55.5]} 9. Be3 {[%clk 0:02:37.7]} 9... Ng6 {[%clk 0:02:55.7]}
10. Na4 {[%clk 0:02:33.9]} 10... b5 {[%clk 0:02:53.9]} 11. Nb6 {[%clk
0:02:33.5]} 11... Rb8 {[%clk 0:02:53.4]} 12. Nxc8 {[%clk 0:02:34.1]} 12... Rxc8
{[%clk 0:02:54]} 13. a4 {[%clk 0:02:34.7]} 13... Rb8 {[%clk 0:02:49]} 14. axb5
{[%clk 0:02:32.8]} 14... axb5 {[%clk 0:02:49.9]} 15. Qe2 {[%clk 0:02:28.1]}
15... b4 {[%clk 0:02:22.1]} 16. Bb5 {[%clk 0:02:27.4]} 16... Be7 {[%clk
0:02:17.4]} 17. Bxc6 {[%clk 0:02:24.3]} 17... dxc6 {[%clk 0:02:17.4]} 18. Qc4
{[%clk 0:02:25.2]} 18... Qc8 {[%clk 0:02:15.4]} 19. Ra6 {[%clk 0:02:10.8]} 19...
Nf8 {[%clk 0:01:53.3]} 20. Rxc6 {[%clk 0:02:09.5]} 20... Qd7 {[%clk 0:01:53.1]}
21. Ra1 {[%clk 0:02:00.6]} 21... Kf7 {[%clk 0:01:42]} 22. h3 {[%clk 0:01:56.3]}
22... Rb7 {[%clk 0:01:24.1]} 23. Raa6 {[%clk 0:01:56.3]} 23... Kg6 {[%clk
0:01:13.5]} 24. e5 {[%clk 0:01:50.3]} 24... f5 {[%clk 0:01:11.5]} 25. Rxe6+
{[%clk 0:01:47.8]} 25... Nxe6 {[%clk 0:01:05.2]} 26. Rxe6+ {[%clk 0:01:48.7]}
26... Kh5 {[%clk 0:01:03.7]} 27. g4+ {[%clk 0:01:47.6]} 27... fxg4 {[%clk
0:01:04.4]} 28. hxg4# {[%clk 0:01:47.4]} 1-0

[Event "Late-Titled-Tuesday-Blitz-March-05-2024"]
[Site "Chess.com"]
[Date "2024.03.05"]
[Round "7"]
[White "s-dshubin"]
[Black "Nouali_Mohamed"]
[Result "0-1"]
[WhiteElo "2323"]
[BlackElo "2535"]
[TimeControl "180+1"]
[EndTime "15:12:04 PST"]
[Termination "Nouali_Mohamed won by resignation"]

1. e4 {[%clk 0:02:49.9]} 1... e5 {[%clk 0:02:59.1]} 2. Nf3 {[%clk 0:02:50.1]}
2... Nc6 {[%clk 0:02:59.6]} 3. Bc4 {[%clk 0:02:50]} 3... Nf6 {[%clk 0:02:59.8]}
4. d3 {[%clk 0:02:49.7]} 4... Bc5 {[%clk 0:03:00]} 5. Be3 {[%clk 0:02:49.8]}
5... d6 {[%clk 0:02:58.7]} 6. Bxc5 {[%clk 0:02:49]} 6... dxc5 {[%clk 0:02:59.6]}
7. c3 {[%clk 0:02:46]} 7... Qe7 {[%clk 0:02:59.3]} 8. Bb3 {[%clk 0:02:43.8]}
8... Be6 {[%clk 0:02:56.3]} 9. O-O {[%clk 0:02:42.5]} 9... O-O-O {[%clk
0:02:54.6]} 10. Bc2 {[%clk 0:02:41.2]} 10... c4 {[%clk 0:02:53.8]} 11. Qe2
{[%clk 0:02:40.1]} 11... cxd3 {[%clk 0:02:49.8]} 12. Bxd3 {[%clk 0:02:41]} 12...
Nh5 {[%clk 0:02:42.9]} 13. g3 {[%clk 0:02:35.6]} 13... Bg4 {[%clk 0:02:43.1]}
14. Nbd2 {[%clk 0:02:29.3]} 14... Qf6 {[%clk 0:02:41.9]} 15. Qe3 {[%clk
0:02:16.2]} 15... Nf4 {[%clk 0:02:07.7]} 16. Bc2 {[%clk 0:01:52.4]} 16... Qg6
{[%clk 0:01:37]} 17. Nh4 {[%clk 0:01:46.1]} 17... Qh6 {[%clk 0:01:26.5]} 18. f3
{[%clk 0:01:14.5]} 18... Nh3+ {[%clk 0:01:24.2]} 0-1

[Event "Late-Titled-Tuesday-Blitz-March-05-2024"]
[Site "Chess.com"]
[Date "2024.03.05"]
[Round "7"]
[White "Kombinator01"]
[Black "ArtemDyachuk"]
[Result "0-1"]
[WhiteElo "2493"]
[BlackElo "2678"]
[TimeControl "180+1"]
[EndTime "15:12:11 PST"]
[Termination "ArtemDyachuk won by resignation"]

1. e4 {[%clk 0:03:00.9]} 1... e5 {[%clk 0:02:58.1]} 2. Nf3 {[%clk 0:02:59.3]}
2... Nc6 {[%clk 0:02:58.7]} 3. d4 {[%clk 0:02:57.1]} 3... exd4 {[%clk
0:02:58.5]} 4. Bc4 {[%clk 0:02:57.5]} 4... Nf6 {[%clk 0:02:57.8]} 5. e5 {[%clk
0:02:55.7]} 5... d5 {[%clk 0:02:58.2]} 6. Bb5 {[%clk 0:02:55.5]} 6... Ne4 {[%clk
0:02:58.8]} 7. Nxd4 {[%clk 0:02:54]} 7... Bc5 {[%clk 0:02:59.3]} 8. Be3 {[%clk
0:02:53]} 8... O-O {[%clk 0:02:58.1]} 9. O-O {[%clk 0:02:50.5]} 9... Nxe5 {[%clk
0:02:53]} 10. Nc3 {[%clk 0:02:43.8]} 10... Nxc3 {[%clk 0:02:46.2]} 11. bxc3
{[%clk 0:02:44.7]} 11... Bd6 {[%clk 0:02:41.8]} 12. Be2 {[%clk 0:02:39.3]} 12...
Re8 {[%clk 0:02:35.5]} 13. h3 {[%clk 0:02:39.6]} 13... Qh4 {[%clk 0:02:34.2]}
14. Nf3 {[%clk 0:02:38.9]} 14... Nxf3+ {[%clk 0:02:32.7]} 15. Bxf3 {[%clk
0:02:39.4]} 15... c6 {[%clk 0:02:33]} 16. Re1 {[%clk 0:02:35]} 16... Bd7 {[%clk
0:02:30.7]} 17. c4 {[%clk 0:02:34.7]} 17... Rad8 {[%clk 0:02:15.2]} 18. cxd5
{[%clk 0:02:34.4]} 18... cxd5 {[%clk 0:02:16.1]} 19. Qxd5 {[%clk 0:02:30.2]}
19... Bc6 {[%clk 0:02:15.8]} 20. Qh5 {[%clk 0:02:26.2]} 20... Qxh5 {[%clk
0:02:12.5]} 21. Bxh5 {[%clk 0:02:27.1]} 21... Be5 {[%clk 0:02:12.4]} 22. Rad1
{[%clk 0:02:24.7]} 22... Bc3 {[%clk 0:02:11.3]} 23. Rxd8 {[%clk 0:02:17]} 23...
Rxd8 {[%clk 0:02:12.2]} 24. Rd1 {[%clk 0:02:16.7]} 24... Rxd1+ {[%clk
0:02:09.7]} 25. Bxd1 {[%clk 0:02:17.6]} 25... a5 {[%clk 0:02:08.3]} 26. Kf1
{[%clk 0:02:13.9]} 26... Bd5 {[%clk 0:02:06.7]} 27. Bf3 {[%clk 0:02:10.8]} 27...
Bxa2 {[%clk 0:02:04.8]} 28. Bxb7 {[%clk 0:02:10.5]} 28... Bc4+ {[%clk 0:02:05]}
29. Kg1 {[%clk 0:02:09.3]} 29... a4 {[%clk 0:02:05.9]} 30. Bc5 {[%clk
0:02:08.8]} 30... Bb2 {[%clk 0:02:05.9]} 31. Be4 {[%clk 0:02:06.1]} 31... a3
{[%clk 0:02:05.5]} 32. Bxa3 {[%clk 0:02:06.7]} 32... Bxa3 {[%clk 0:02:06.4]} 33.
f4 {[%clk 0:02:06.7]} 33... Bc5+ {[%clk 0:02:05.8]} 34. Kh2 {[%clk 0:02:07.1]}
34... Be3 {[%clk 0:02:06.3]} 35. Kg3 {[%clk 0:02:06.4]} 35... g6 {[%clk
0:02:02.7]} 36. Kf3 {[%clk 0:02:06.8]} 36... Bd4 {[%clk 0:02:03.1]} 37. Bc6
{[%clk 0:02:06.6]} 37... Kg7 {[%clk 0:02:01.3]} 38. Ke4 {[%clk 0:02:06.8]} 38...
Bb6 {[%clk 0:02:00.2]} 39. g4 {[%clk 0:02:03.1]} 39... Kf6 {[%clk 0:01:59.8]}
40. h4 {[%clk 0:02:02.8]} 40... Ke6 {[%clk 0:01:59.7]} 41. Bb7 {[%clk
0:01:54.9]} 41... f5+ {[%clk 0:01:58.9]} 42. Kf3 {[%clk 0:01:52.5]} 42... Bd5+
{[%clk 0:01:58.5]} 43. Bxd5+ {[%clk 0:01:52.4]} 43... Kxd5 {[%clk 0:01:59.4]}
44. h5 {[%clk 0:01:52.5]} 44... Kd4 {[%clk 0:01:58.2]} 45. hxg6 {[%clk 0:01:49]}
45... hxg6 {[%clk 0:01:57.6]} 46. Kg3 {[%clk 0:01:49.1]} 46... Ke4 {[%clk
0:01:57.1]} 47. c4 {[%clk 0:01:47.1]} 47... Bc7 {[%clk 0:01:56.5]} 48. gxf5
{[%clk 0:01:47.2]} 48... gxf5 {[%clk 0:01:57.3]} 49. c5 {[%clk 0:01:47.5]} 49...
Bxf4+ {[%clk 0:01:57.2]} 50. Kh4 {[%clk 0:01:48.1]} 50... Bc7 {[%clk 0:01:58.1]}
51. c6 {[%clk 0:01:48.3]} 51... f4 {[%clk 0:01:59]} 52. Kg4 {[%clk 0:01:48.6]}
52... Ke3 {[%clk 0:01:59.3]} 53. Kf5 {[%clk 0:01:48.9]} 53... f3 {[%clk
0:02:00.2]} 54. Ke6 {[%clk 0:01:49.7]} 54... f2 {[%clk 0:02:00.6]} 55. Kd7
{[%clk 0:01:50.6]} 55... Bb6 {[%clk 0:02:01.1]} 56. c7 {[%clk 0:01:50.2]} 56...
Bxc7 {[%clk 0:02:01.3]} 0-1

[Event "Late-Titled-Tuesday-Blitz-March-05-2024"]
[Site "Chess.com"]
[Date "2024.03.05"]
[Round "7"]
[White "vladgoncharov"]
[Black "GiorgianBarbosa"]
[Result "1-0"]
[WhiteElo "2627"]
[BlackElo "2415"]
[TimeControl "180+1"]
[EndTime "15:12:12 PST"]
[Termination "vladgoncharov won by resignation"]

1. d4 {[%clk 0:03:00.9]} 1... Nf6 {[%clk 0:02:59.6]} 2. c4 {[%clk 0:02:57.9]}
2... e6 {[%clk 0:03:00.5]} 3. Nc3 {[%clk 0:02:56.7]} 3... d5 {[%clk 0:03:01.4]}
4. cxd5 {[%clk 0:02:55.7]} 4... exd5 {[%clk 0:03:02.3]} 5. Bg5 {[%clk
0:02:55.7]} 5... c6 {[%clk 0:03:03.2]} 6. e3 {[%clk 0:02:55.3]} 6... Be6 {[%clk
0:03:00.6]} 7. Bd3 {[%clk 0:02:55.1]} 7... Nbd7 {[%clk 0:03:00.9]} 8. Nge2
{[%clk 0:02:53.4]} 8... a6 {[%clk 0:03:00.9]} 9. O-O {[%clk 0:02:49.4]} 9... Bd6
{[%clk 0:03:00.9]} 10. Bf4 {[%clk 0:02:47.3]} 10... Be7 {[%clk 0:02:57.7]} 11.
a4 {[%clk 0:02:41.7]} 11... a5 {[%clk 0:02:50.7]} 12. h3 {[%clk 0:02:39]} 12...
h6 {[%clk 0:02:48.6]} 13. Bh2 {[%clk 0:02:37.7]} 13... g5 {[%clk 0:02:47.7]} 14.
f4 {[%clk 0:02:37.4]} 14... g4 {[%clk 0:02:47.1]} 15. f5 {[%clk 0:02:36.4]}
15... gxh3 {[%clk 0:02:47.3]} 16. gxh3 {[%clk 0:02:36.3]} 16... Nf8 {[%clk
0:02:41.2]} 17. fxe6 {[%clk 0:02:35.1]} 17... Nxe6 {[%clk 0:02:42.1]} 18. Nf4
{[%clk 0:02:33.5]} 18... Ng5 {[%clk 0:02:41.5]} 19. Kh1 {[%clk 0:02:31.5]} 19...
Qd7 {[%clk 0:02:26.1]} 20. Qc2 {[%clk 0:02:22.5]} 20... Nge4 {[%clk 0:02:12.3]}
21. Nxe4 {[%clk 0:02:20.9]} 21... dxe4 {[%clk 0:02:13.2]} 22. Bxe4 {[%clk
0:02:10.3]} 22... Nxe4 {[%clk 0:02:12.5]} 23. Qxe4 {[%clk 0:02:10]} 23... Kd8
{[%clk 0:02:13.4]} 24. Qf3 {[%clk 0:02:05.8]} 24... Bg5 {[%clk 0:02:11.8]} 25.
Nd3 {[%clk 0:02:01.9]} 25... f6 {[%clk 0:02:08.9]} 26. Nc5 {[%clk 0:01:55.9]}
26... Qh7 {[%clk 0:02:08.8]} 27. e4 {[%clk 0:01:51.9]} 27... Re8 {[%clk
0:02:06.4]} 28. d5 {[%clk 0:01:50]} 28... b6 {[%clk 0:02:03.8]} 29. Ne6+ {[%clk
0:01:49.3]} 29... Kd7 {[%clk 0:02:04]} 30. Rad1 {[%clk 0:01:45.2]} 30... c5
{[%clk 0:02:03.9]} 31. h4 {[%clk 0:01:40.6]} 31... Bxh4 {[%clk 0:02:02.7]} 32.
Qh3 {[%clk 0:01:40.7]} 32... Qxe4+ {[%clk 0:02:01.8]} 33. Qf3 {[%clk 0:01:35.4]}
33... Qxa4 {[%clk 0:01:49.3]} 34. Qf5 {[%clk 0:01:31.7]} 34... Kc8 {[%clk
0:01:31.6]} 35. Nxc5+ {[%clk 0:01:27]} 1-0

[Event "Late-Titled-Tuesday-Blitz-March-05-2024"]
[Site "Chess.com"]
[Date "2024.03.05"]
[Round "7"]
[White "HanSchut"]
[Black "XeresLt"]
[Result "0-1"]
[WhiteElo "2332"]
[BlackElo "2470"]
[TimeControl "180+1"]
[EndTime "15:12:17 PST"]
[Termination "XeresLt won by resignation"]

1. e4 {[%clk 0:02:52.1]} 1... e6 {[%clk 0:02:59.9]} 2. d4 {[%clk 0:02:51.4]}
2... c5 {[%clk 0:03:00.8]} 3. c4 {[%clk 0:02:48.4]} 3... cxd4 {[%clk 0:03:00.1]}
4. Qxd4 {[%clk 0:02:48.7]} 4... Nc6 {[%clk 0:03:00.1]} 5. Qd3 {[%clk 0:02:49.3]}
5... Bc5 {[%clk 0:02:59.7]} 6. Nc3 {[%clk 0:02:43.3]} 6... Nge7 {[%clk
0:02:59.8]} 7. a3 {[%clk 0:02:42.5]} 7... O-O {[%clk 0:02:58.1]} 8. Be3 {[%clk
0:02:38.1]} 8... Ne5 {[%clk 0:02:53.1]} 9. Qd2 {[%clk 0:02:37.1]} 9... d6 {[%clk
0:02:43.5]} 10. h3 {[%clk 0:02:31.9]} 10... f5 {[%clk 0:02:40.4]} 11. f4 {[%clk
0:02:25.9]} 11... Bxe3 {[%clk 0:02:37]} 12. Qxe3 {[%clk 0:02:23.4]} 12... N5g6
{[%clk 0:02:37.9]} 13. O-O-O {[%clk 0:02:10.7]} 13... fxe4 {[%clk 0:02:33.8]}
14. Nxe4 {[%clk 0:02:10.7]} 14... d5 {[%clk 0:02:34.2]} 15. g3 {[%clk
0:02:05.1]} 15... Qc7 {[%clk 0:02:32.8]} 16. Ng5 {[%clk 0:01:57.8]} 16... Nf5
{[%clk 0:02:24.8]} 17. Qe1 {[%clk 0:01:48.1]} 17... dxc4 {[%clk 0:02:03.8]} 18.
Nxe6 {[%clk 0:01:33.7]} 18... Bxe6 {[%clk 0:02:03.6]} 19. Qxe6+ {[%clk
0:01:34.6]} 19... Kh8 {[%clk 0:02:04.1]} 20. Ne2 {[%clk 0:00:46.3]} 20... Nxg3
{[%clk 0:02:00.7]} 21. Rd7 {[%clk 0:00:36.1]} 21... Nxe2+ {[%clk 0:01:59.6]} 22.
Bxe2 {[%clk 0:00:33.5]} 22... Qxf4+ {[%clk 0:01:58.8]} 23. Kb1 {[%clk
0:00:34.4]} 23... Rae8 {[%clk 0:01:57]} 24. Re7 {[%clk 0:00:32.6]} 24... Rxe7
{[%clk 0:01:56.1]} 0-1

[Event "Late-Titled-Tuesday-Blitz-March-05-2024"]
[Site "Chess.com"]
[Date "2024.03.05"]
[Round "7"]
[White "ninguno46"]
[Black "GianmarcoVaR"]
[Result "0-1"]
[WhiteElo "2508"]
[BlackElo "2763"]
[TimeControl "180+1"]
[EndTime "15:12:26 PST"]
[Termination "GianmarcoVaR won by resignation"]

1. e4 {[%clk 0:02:59]} 1... c5 {[%clk 0:02:59.7]} 2. Nc3 {[%clk 0:02:58.3]} 2...
d6 {[%clk 0:02:59.9]} 3. f4 {[%clk 0:02:58.4]} 3... g6 {[%clk 0:02:59.7]} 4. Nf3
{[%clk 0:02:58.6]} 4... Bg7 {[%clk 0:03:00.2]} 5. Bb5+ {[%clk 0:02:58.6]} 5...
Bd7 {[%clk 0:03:00.3]} 6. Bc4 {[%clk 0:02:58.5]} 6... Nc6 {[%clk 0:03:00.9]} 7.
O-O {[%clk 0:02:57.7]} 7... e6 {[%clk 0:02:51.2]} 8. a3 {[%clk 0:02:56.5]} 8...
Nge7 {[%clk 0:02:50.8]} 9. d3 {[%clk 0:02:55.9]} 9... O-O {[%clk 0:02:48.4]} 10.
Qe1 {[%clk 0:02:54.3]} 10... Nd4 {[%clk 0:02:40]} 11. Nxd4 {[%clk 0:02:53.4]}
11... Bxd4+ {[%clk 0:02:38.4]} 12. Kh1 {[%clk 0:02:52.6]} 12... Bc6 {[%clk
0:02:36.3]} 13. Ba2 {[%clk 0:02:48.4]} 13... Bg7 {[%clk 0:02:33.6]} 14. f5
{[%clk 0:02:43.1]} 14... exf5 {[%clk 0:02:33.8]} 15. Qg3 {[%clk 0:02:42.1]}
15... Qd7 {[%clk 0:02:29.8]} 16. Bg5 {[%clk 0:02:37.9]} 16... Rae8 {[%clk
0:02:25.5]} 17. Qh4 {[%clk 0:02:36]} 17... d5 {[%clk 0:02:19.6]} 18. Rad1 {[%clk
0:02:06.7]} 18... f6 {[%clk 0:02:09.9]} 19. Bh6 {[%clk 0:01:52.6]} 19... Bxh6
{[%clk 0:02:00.4]} 20. Qxh6 {[%clk 0:01:52.1]} 20... Kh8 {[%clk 0:02:01.2]} 21.
Rf3 {[%clk 0:01:35.7]} 21... d4 {[%clk 0:01:58]} 22. Ne2 {[%clk 0:01:27.8]}
22... fxe4 {[%clk 0:01:51.2]} 23. Rh3 {[%clk 0:01:25.7]} 23... Ng8 {[%clk
0:01:51.8]} 24. Bxg8 {[%clk 0:01:23.9]} 24... Kxg8 {[%clk 0:01:48.3]} 25. dxe4
{[%clk 0:01:06.2]} 25... Rxe4 {[%clk 0:01:49.2]} 26. Ng3 {[%clk 0:00:55.7]}
26... Re3 {[%clk 0:01:48.6]} 27. Rf1 {[%clk 0:00:52.2]} 27... Rf7 {[%clk
0:01:39.4]} 28. Qf4 {[%clk 0:00:49.5]} 28... Qxh3 {[%clk 0:01:38.1]} 0-1

[Event "Late-Titled-Tuesday-Blitz-March-05-2024"]
[Site "Chess.com"]
[Date "2024.03.05"]
[Round "7"]
[White "Elsa167"]
[Black "Rud_2008"]
[Result "1/2-1/2"]
[WhiteElo "2898"]
[BlackElo "2777"]
[TimeControl "180+1"]
[EndTime "15:12:40 PST"]
[Termination "Game drawn by agreement"]

1. d4 {[%clk 0:03:00.9]} 1... Nf6 {[%clk 0:03:00.1]} 2. c4 {[%clk 0:03:01.1]}
2... e6 {[%clk 0:03:00.5]} 3. Nf3 {[%clk 0:03:01.3]} 3... d5 {[%clk 0:03:00.8]}
4. Nc3 {[%clk 0:03:01.7]} 4... Bb4 {[%clk 0:03:01.2]} 5. Bg5 {[%clk 0:03:02.1]}
5... h6 {[%clk 0:03:01.3]} 6. Bxf6 {[%clk 0:03:02.7]} 6... Qxf6 {[%clk
0:03:02.2]} 7. e3 {[%clk 0:03:03.6]} 7... O-O {[%clk 0:03:02.7]} 8. Rc1 {[%clk
0:03:04.2]} 8... Nc6 {[%clk 0:03:03.3]} 9. Be2 {[%clk 0:03:03.5]} 9... dxc4
{[%clk 0:03:03]} 10. Bxc4 {[%clk 0:03:04.4]} 10... e5 {[%clk 0:02:58.4]} 11. O-O
{[%clk 0:03:04.2]} 11... exd4 {[%clk 0:02:58.2]} 12. Nd5 {[%clk 0:03:04.6]}
12... Qd6 {[%clk 0:02:58.9]} 13. Nxb4 {[%clk 0:02:44.9]} 13... Nxb4 {[%clk
0:02:47.1]} 14. Qxd4 {[%clk 0:02:39.7]} 14... Qxd4 {[%clk 0:02:42.2]} 15. Nxd4
{[%clk 0:02:40.6]} 15... Bd7 {[%clk 0:02:41.2]} 16. Rfd1 {[%clk 0:02:32.3]}
16... Rfd8 {[%clk 0:02:36.4]} 17. a3 {[%clk 0:02:15]} 17... Nc6 {[%clk
0:02:35.9]} 18. f4 {[%clk 0:02:06.9]} 18... Kf8 {[%clk 0:02:33.9]} 19. Nxc6
{[%clk 0:02:01.7]} 19... Bxc6 {[%clk 0:02:33.3]} 20. Kf2 {[%clk 0:02:01.9]}
20... Ke7 {[%clk 0:02:32]} 21. h4 {[%clk 0:01:59.9]} 21... f6 {[%clk 0:02:31.1]}
22. g4 {[%clk 0:01:57.4]} 22... Rxd1 {[%clk 0:02:30.5]} 23. Rxd1 {[%clk
0:01:57.6]} 23... Rd8 {[%clk 0:02:31]} 24. Rxd8 {[%clk 0:01:55.6]} 24... Kxd8
{[%clk 0:02:31.9]} 25. Bd3 {[%clk 0:01:22.6]} 25... Ke7 {[%clk 0:02:28.1]} 26.
e4 {[%clk 0:01:20.2]} 26... Kd6 {[%clk 0:02:27]} 27. Ke3 {[%clk 0:01:20.2]}
27... Bd7 {[%clk 0:02:27.4]} 28. Be2 {[%clk 0:01:06.9]} 28... c5 {[%clk
0:02:27.4]} 29. Bd1 {[%clk 0:00:59.2]} 29... b6 {[%clk 0:02:17.5]} 30. Bf3
{[%clk 0:00:59]} 30... Bc8 {[%clk 0:01:55.4]} 31. Be2 {[%clk 0:00:58.4]} 31...
Bd7 {[%clk 0:01:55.7]} 32. Bf3 {[%clk 0:00:58.8]} 32... Bc8 {[%clk 0:01:55.8]}
33. Be2 {[%clk 0:00:59.2]} 33... Bd7 {[%clk 0:01:56.1]} 34. Bd1 {[%clk
0:00:59.1]} 34... Bc8 {[%clk 0:01:52.8]} 1/2-1/2